[Event "44th Chess Olympiad Women 2022"]
[Site "Chennai"]
[Date "2022.08.06"]
[Round "8.23"]
[White "Atalik, Ekaterina"]
[Black "Sultana, Sharmin Shirin"]
[Result "1-0"]
[WhiteElo "2422"]
[BlackElo "1995"]
[Annotator "TA"]
[PlyCount "83"]
[EventDate "2022.??.??"]
[TimeControl "60"]

{[%evp 10,83,20,22,52,51,70,58,62,55,70,55,70,79,84,62,76,69,73,72,67,45,72,39,
39,0,58,0,83,79,79,76,84,77,81,-32,-35,-43,-47,-62,-44,-68,33,50,33,24,59,23,
595,329,741,698,710,738,703,681,1152,1081,1071,935,29977,29978,29976,29979,
29979,29980,29980,29981,29981,29982,29993,29991,29991,29979,29965,12357]} 1.
Nf3 {[%emt 0:00:03]} d5 {[%emt 0:00:42]} 2. g3 {[%emt 0:00:05]} Nf6 {[%emt 0:
00:00]} 3. Bg2 {[%emt 0:00:14]} e6 {[%emt 0:02:12]} 4. d4 {[%emt 0:00:47]} Bd6
{[%emt 0:01:10]} 5. O-O {[%emt 0:00:54]} O-O {[%emt 0:00:33]} 6. c4 {[%emt 0:
00:00][%cal Yc2c4,Yc4c5]} a6 {[%emt 0:02:52] 6...h6 is the modern continuation.
D02:1 d4 d5 2 Nf3 sidelines, including 2...Nf6 3 g3 and 2...Nf6 3 Bf4.} 7. Nc3
{[%emt 0:00:52] [#]} Nbd7 $146 {[%emt 0:02:24]} ({Predecessor:} 7... c6 8. Nd2
Re8 9. e4 e5 10. dxe5 Bxe5 11. exd5 Bxc3 12. bxc3 cxd5 13. cxd5 Nxd5 {1-0 (36)
Bai,J (2572)-Harmon Vellotti,L (2455) Chess.com INT 2019}) 8. c5 {[%emt 0:03:
59]} Be7 {[%emt 0:00:11] White is slightly better.} 9. b4 {[%emt 0:00:00]} Nb8
{[%emt 0:15:18]} 10. Ne5 {[%emt 0:04:20]} Nc6 {[%emt 0:08:10]} 11. Nxc6 {
[%emt 0:03:01] White is much more active. The black rooks are badly placed.}
bxc6 {[%emt 0:03:25]} 12. a4 {[%emt 0:00:17]} Rb8 {[%emt 0:06:44]} 13. Rb1 {
[%emt 0:01:17]} e5 {[%emt 0:12:42]} 14. dxe5 {[%emt 0:04:51]} Ng4 {[%emt 0:01:
14]} 15. Bf4 {[%emt 0:01:49]} g5 {[%emt 0:03:41]} 16. Bc1 {[%emt 0:00:00]} (16.
Be3 $5 {[%cal Re3d4]}) 16... Nxe5 {[%emt 0:03:06]} 17. Qc2 {[%emt 0:00:21]} f5
{[%emt 0:05:19]} (17... Bf6 $11) 18. f4 {[%emt 0:02:50]} (18. Rd1 $14) 18...
Ng4 {[%emt 0:02:58]} (18... Nc4 $11 {remains equal.}) 19. h3 $16 {[%emt 0:05:
48]} Nf6 {[%emt 0:05:50][%cal Yb8b4,Yg4f6,Yf6h5,Yh5g3]} 20. fxg5 {[%emt 0:05:
19]} Nh5 {[%emt 0:00:11][%csl Yg3,Yg5]} 21. Kh2 {[%emt 0:01:31]} Bxg5 {[%emt 0:
02:49] [#]} 22. Bf3 {[%emt 0:04:12] [#]} (22. e3 $1 $16) 22... f4 $1 $15 {
[%emt 0:04:52]} 23. g4 {[%emt 0:00:36]} ({Not} 23. Bxh5 $2 fxg3+ 24. Kg2 (24.
Kg1 $2 Rxf1+ 25. Kxf1 Bxh3+ 26. Kg1 Qf6 $19) 24... Rxf1 25. Bxg5 {[#]} (25.
Kxf1 $2 {perishes.} Bxh3+ 26. Kg1 Qf6 $19) 25... Qxg5 $1 $19) 23... Ng3 {
[%emt 0:02:01]} 24. Rd1 {[%emt 0:00:11][%cal Rc3d5] And now Nxd5! would win.}
Qe7 {[%emt 0:07:01]} 25. Kg2 {[%emt 0:04:57]} Bd7 {[%emt 0:00:00]} ({Better is
} 25... Be6 $15 26. Qd3 Rf6) 26. b5 $1 $14 {[%emt 0:02:22] Threatens to win
with bxc6.} axb5 {[%emt 0:00:13]} 27. axb5 {[%emt 0:00:05]} Qxc5 {[%emt 0:02:
20]} 28. Qb3 {[%emt 0:06:01][%cal Rc3d5] Black must now prevent Nxd5! Chess
con chili.} Kh8 $2 {[%emt 0:00:15] This costs Black the game.} (28... Rf7 $1
$11 {and Black stays safe.}) 29. Ba3 {[%emt 0:00:00] Deflection} Qa7 {[%emt 0:
01:40]} (29... Qe3 30. Bxf8 Rxf8) 30. Bxf8 $18 {[%emt 0:00:25]} Rxf8 {[%emt 0:
00:18]} 31. bxc6 {[%emt 0:01:39]} Bxc6 {[%emt 0:01:56]} 32. Nxd5 {[%emt 0:03:
07]} Be8 {[%emt 0:02:02]} 33. Qc3+ {[%emt 0:03:46]} Kg8 {[%emt 0:00:06]} 34.
Qe5 {[%emt 0:02:45]} Bh4 {[%emt 0:00:00]} 35. Ne7+ {[%emt 0:02:11] White mates.
} Bxe7 {[%emt 0:00:05]} 36. Qxe7 {[%emt 0:00:05]} Bf7 {[%emt 0:00:36]} 37. Rd8
{[%emt 0:00:39]} Rxd8 {[%emt 0:00:00]} 38. Qxd8+ {[%emt 0:00:05]} Kg7 {[%emt 0:
00:02]} 39. Qg5+ {[%emt 0:00:19]} Bg6 {[%emt 0:00:09]} 40. Qe7+ {[%emt 0:00:32]
} Bf7 {[%emt 0:01:22]} 41. Qe5+ {[%emt 0:32:44]} Kg6 {[%emt 0:02:56]} 42. Rc1 {
[%emt 0:00:00] Weighted Error Value: White=0.32/Black=0.64} 1-0

[Event "44th Chess Olympiad Women 2022"]
[Site "Chennai"]
[Date "2022.08.06"]
[Round "8.23"]
[White "Khan, Nazrana"]
[Black "Kocyigit, Buse Naz"]
[Result "1-0"]
[WhiteElo "1829"]
[BlackElo "1991"]
[Annotator "NA RC"]
[PlyCount "108"]
[EventDate "2022.??.??"]
[TimeControl "60"]

1. d4 {[%emt 0:00:03]} Nf6 {[%emt 0:00:05]} 2. c4 {[%emt 0:00:10]} g6 {[%emt 0:
00:00]} 3. Nc3 {[%emt 0:00:20]} Bg7 {[%emt 0:00:06]} 4. e4 {[%emt 0:00:36]} d6
{[%emt 0:00:09]} 5. Nf3 {[%emt 0:00:18]} O-O {[%emt 0:00:19]} 6. Be2 {[%emt 0:
00:00]} Bg4 {[%emt 0:00:49]} 7. h3 {[%emt 0:01:45]} Bxf3 {[%emt 0:00:08]} 8.
Bxf3 {[%emt 0:00:19]} Nfd7 {[%emt 0:02:38]} 9. O-O {[%emt 0:03:17]} c5 {
[%emt 0:04:58]} 10. Be3 {[%emt 0:07:55]} Nc6 {[%emt 0:00:38]} 11. d5 {[%emt 0:
00:00]} Nd4 {[%emt 0:00:08]} 12. Bxd4 {[%emt 0:02:51]} cxd4 {[%emt 0:03:43]}
13. Ne2 {[%emt 0:13:16]} Qb6 {[%emt 0:00:25]} 14. Rb1 {[%emt 0:03:20]} Ne5 {
[%emt 0:09:51]} 15. b3 {[%emt 0:02:19]} Nxf3+ {[%emt 0:07:31]} 16. gxf3 {
[%emt 0:01:28]} e5 {[%emt 0:01:54]} 17. f4 {[%emt 0:09:20]} f5 {[%emt 0:01:50]}
18. exf5 {[%emt 0:07:41]} Rxf5 {[%emt 0:00:42]} 19. fxe5 {[%emt 0:01:51]} Bxe5
{[%emt 0:09:37]} 20. Kg2 {[%emt 0:01:19]} Raf8 {[%emt 0:01:37]} 21. Qd3 {
[%emt 0:01:48]} Qd8 {[%emt 0:22:16]} 22. Ng3 {[%emt 0:05:49]} Qg5 {[%emt 0:00:
00]} 23. Rbe1 {[%emt 0:01:29]} h5 {[%emt 0:02:31]} 24. Re4 {[%emt 0:05:15]} Rf4
{[%emt 0:08:42]} 25. h4 {[%emt 0:04:30]} Qg4 {[%emt 0:06:47]} 26. Rxf4 {
[%emt 0:05:27]} Bxf4 {[%emt 0:02:06]} 27. Re1 {[%emt 0:01:25]} Be3 {[%emt 0:00:
00]} 28. Rxe3 {[%emt 0:02:58]} dxe3 {[%emt 0:00:22]} 29. Qxe3 {[%emt 0:00:19]}
Qxh4 {[%emt 0:02:42]} 30. Qe6+ {[%emt 0:00:39]} Kg7 {[%emt 0:00:23]} 31. Qxd6 {
[%emt 0:01:23]} Qf6 {[%emt 0:01:31]} 32. Qxf6+ {[%emt 0:01:20]} Kxf6 {[%emt 0:
00:00]} 33. Ne4+ {[%emt 0:00:51]} Ke5 {[%emt 0:00:18]} 34. Nc5 {[%emt 0:00:31]}
Rf7 {[%emt 0:00:56]} 35. Kg3 {[%emt 0:00:24]} g5 {[%emt 0:00:34]} 36. f3 {
[%emt 0:00:52]} b5 {[%emt 0:01:47]} 37. Ne6 {[%emt 0:00:39]} bxc4 {[%emt 0:00:
00]} 38. bxc4 {[%emt 0:00:15]} Rb7 {[%emt 0:01:19]} 39. Nxg5 {[%emt 0:00:31]}
Kd4 {[%emt 0:00:34]} 40. Ne4 {[%emt 0:00:52]} Rg7+ {[%emt 0:00:10]} 41. Kh4 {
[%emt 0:30:52]} Rf7 {[%emt 0:16:22]} 42. d6 {[%emt 0:00:00]} Kxc4 {[%emt 0:00:
00]} 43. Kxh5 {[%emt 0:00:00]} Kb5 {[%emt 0:01:42]} 44. Kg4 {[%emt 0:00:00]}
Kc6 {[%emt 0:00:33]} 45. f4 {[%emt 0:00:00]} Rb7 {[%emt 0:02:30]} 46. f5 {
[%emt 0:00:00]} Rb4 {[%emt 0:00:28]} 47. Kf3 {[%emt 0:00:00]} a5 {[%emt 0:00:
00]} 48. f6 {[%emt 0:00:00]} a4 {[%emt 0:02:26]} 49. Kf4 {[%emt 0:00:00]} Kd7 {
[%emt 0:00:59]} 50. f7 {[%emt 0:00:00]} Rb8 {[%emt 0:00:43]} 51. Ke5 {[%emt 0:
00:00]} a3 {[%emt 0:00:23]} 52. Nf6+ {[%emt 0:00:00]} Kc6 {[%emt 0:00:09]} 53.
Ke6 {[%emt 0:00:00]} Rf8 {[%emt 0:00:30]} 54. d7 {[%emt 0:00:00]} Rh8 {[%emt 0:
00:00]} 1-0

[Event "44th Chess Olympiad Women 2022"]
[Site "Chennai"]
[Date "2022.08.06"]
[Round "8.23"]
[White "Noshin, Anjum"]
[Black "Okuyaz, Duru"]
[Result "0-1"]
[WhiteElo "2027"]
[BlackElo "2090"]
[Annotator "NA RC"]
[PlyCount "70"]
[EventDate "2022.??.??"]
[TimeControl "60"]

1. e4 {[%emt 0:00:04]} e6 {[%emt 0:00:05]} 2. d4 {[%emt 0:00:07]} d5 {[%emt 0:
00:00]} 3. Nc3 {[%emt 0:00:10]} Nf6 {[%emt 0:00:06]} 4. e5 {[%emt 0:00:06]}
Nfd7 {[%emt 0:00:04]} 5. f4 {[%emt 0:00:07]} c5 {[%emt 0:00:04]} 6. Nf3 {
[%emt 0:00:04]} Nc6 {[%emt 0:00:06]} 7. Be3 {[%emt 0:00:06]} Be7 {[%emt 0:00:
00]} 8. Qd2 {[%emt 0:00:05]} O-O {[%emt 0:00:07]} 9. dxc5 {[%emt 0:01:03]} Nxc5
{[%emt 0:00:08]} 10. O-O-O {[%emt 0:01:23]} a6 {[%emt 0:00:08]} 11. Kb1 {
[%emt 0:06:59]} b5 {[%emt 0:02:48]} 12. Bxc5 {[%emt 0:07:54]} Bxc5 {[%emt 0:00:
00]} 13. Bd3 {[%emt 0:00:16]} Bb4 {[%emt 0:10:12]} 14. a3 {[%emt 0:09:35]} Be7
{[%emt 0:00:34]} 15. Ne2 {[%emt 0:09:13]} Na5 {[%emt 0:04:35]} 16. Ned4 {
[%emt 0:02:00]} Nc4 {[%emt 0:03:26]} 17. Bxc4 {[%emt 0:02:44]} bxc4 {[%emt 0:
00:00]} 18. Nc6 {[%emt 0:02:28]} Qc7 {[%emt 0:00:08]} 19. Nxe7+ {[%emt 0:00:04]
} Qxe7 {[%emt 0:19:44]} 20. Nd4 {[%emt 0:19:39]} Bd7 {[%emt 0:00:00]} 21. h4 {
[%emt 0:00:21]} c3 {[%emt 0:00:00]} 22. Qxc3 {[%emt 0:00:40]} Rfc8 {[%emt 0:00:
00]} 23. Qd3 {[%emt 0:08:02]} Rab8 {[%emt 0:00:00]} 24. h5 {[%emt 0:02:43]} Ba4
{[%emt 0:00:00]} 25. Rd2 {[%emt 0:00:49]} Rc7 {[%emt 0:03:01]} 26. Ka2 {
[%emt 0:01:24]} Rcb7 {[%emt 0:05:52]} 27. c3 {[%emt 0:05:35]} Bb3+ {[%emt 0:00:
00]} 28. Nxb3 {[%emt 0:00:26]} Rxb3 {[%emt 0:00:04]} 29. h6 {[%emt 0:13:39]} g6
{[%emt 0:00:04]} 30. g4 {[%emt 0:03:32]} Qb7 {[%emt 0:00:13]} 31. Rhh2 {
[%emt 0:02:34]} Rxa3+ {[%emt 0:01:09]} 32. Kb1 {[%emt 0:00:17]} Qb3 {[%emt 0:
00:00]} 33. Rc2 {[%emt 0:00:43]} Qa4 {[%emt 0:00:23]} 34. Kc1 {[%emt 0:00:29]}
Ra1+ {[%emt 0:00:12]} 35. Kd2 {[%emt 0:00:05]} Qxf4+ {[%emt 0:00:05]} 0-1

[Event "44th Chess Olympiad Women 2022"]
[Site "Chennai"]
[Date "2022.08.06"]
[Round "8.23"]
[White "Onur, Cigdem"]
[Black "Jannatul, Ferdous"]
[Result "1-0"]
[WhiteElo "2000"]
[BlackElo "1815"]
[Annotator "NA RC"]
[PlyCount "109"]
[EventDate "2022.??.??"]
[TimeControl "60"]

1. e4 {[%emt 0:00:15]} c6 {[%emt 0:00:48]} 2. d4 {[%emt 0:00:03]} d5 {[%emt 0:
00:00]} 3. Nc3 {[%emt 0:00:05]} dxe4 {[%emt 0:00:04]} 4. Nxe4 {[%emt 0:00:10]}
Bf5 {[%emt 0:00:07]} 5. Nc5 {[%emt 0:00:00]} b6 {[%emt 0:03:16]} 6. Nb3 {
[%emt 0:00:07]} e6 {[%emt 0:00:46]} 7. Nf3 {[%emt 0:00:09]} Nf6 {[%emt 0:00:36]
} 8. g3 {[%emt 0:00:45]} Bd6 {[%emt 0:01:10]} 9. Bg2 {[%emt 0:00:20]} O-O {
[%emt 0:00:11]} 10. O-O {[%emt 0:01:10]} Qc7 {[%emt 0:00:06]} 11. Qe2 {[%emt 0:
00:00]} a5 {[%emt 0:13:14]} 12. a4 {[%emt 0:13:18]} Nd5 {[%emt 0:11:37]} 13.
Nh4 {[%emt 0:11:32]} Bg6 {[%emt 0:01:48]} 14. c4 {[%emt 0:07:16]} Nb4 {[%emt 0:
00:00]} 15. Nxg6 {[%emt 0:00:11]} hxg6 {[%emt 0:00:11]} 16. f4 {[%emt 0:13:02]}
Nd7 {[%emt 0:02:22]} 17. Be3 {[%emt 0:09:32]} Rac8 {[%emt 0:00:48]} 18. Rfd1 {
[%emt 0:22:02]} c5 {[%emt 0:22:27]} 19. Rac1 {[%emt 0:00:32]} Na2 {[%emt 0:00:
00]} 20. Rc2 {[%emt 0:00:40]} Nb4 {[%emt 0:00:02]} 21. Rcd2 {[%emt 0:00:57]}
Rfd8 {[%emt 0:02:18]} 22. Kh1 {[%emt 0:06:13]} Be7 {[%emt 0:09:19]} 23. dxc5 {
[%emt 0:04:00]} Nxc5 {[%emt 0:00:30]} 24. Nxc5 {[%emt 0:00:20]} Rxd2 {[%emt 0:
00:00]} 25. Qxd2 {[%emt 0:00:34]} bxc5 {[%emt 0:05:56]} 26. Qd7 {[%emt 0:00:32]
} Bf6 {[%emt 0:00:20]} 27. b3 {[%emt 0:00:48]} Nc2 {[%emt 0:01:22]} 28. Qxc7 {
[%emt 0:00:09]} Rxc7 {[%emt 0:00:07]} 29. Bg1 {[%emt 0:00:56]} Bd4 {[%emt 0:00:
00]} 30. Be4 {[%emt 0:00:20]} Bxg1 {[%emt 0:03:05]} 31. Rd8+ {[%emt 0:00:03]}
Kh7 {[%emt 0:00:01]} 32. Bxc2 {[%emt 0:01:06]} Bd4 {[%emt 0:01:17]} 33. Kg2 {
[%emt 0:00:26]} e5 {[%emt 0:02:25]} 34. f5 {[%emt 0:00:30]} gxf5 {[%emt 0:00:
00]} 35. g4 {[%emt 0:00:37]} e4 {[%emt 0:03:25]} 36. gxf5 {[%emt 0:00:24]} Re7
{[%emt 0:00:05]} 37. Kf1 {[%emt 0:00:38]} Kh6 {[%emt 0:01:28]} 38. Ke2 {
[%emt 0:00:29]} Kg5 {[%emt 0:00:12]} 39. Ra8 {[%emt 0:00:24]} Bc3 {[%emt 0:00:
00]} 40. Rc8 {[%emt 0:00:33]} Kxf5 {[%emt 0:01:23]} 41. Rxc5+ {[%emt 0:30:09]}
Re5 {[%emt 0:30:13]} 42. Rc7 {[%emt 0:00:00]} Ke6 {[%emt 0:00:00]} 43. c5 {
[%emt 0:00:00]} g5 {[%emt 0:00:00]} 44. b4 {[%emt 0:00:00]} Bxb4 {[%emt 0:00:
00]} 45. Bb3+ {[%emt 0:00:00]} Kf5 {[%emt 0:00:00]} 46. Rxf7+ {[%emt 0:00:00]}
Kg6 {[%emt 0:00:00]} 47. c6 {[%emt 0:00:00]} Rc5 {[%emt 0:00:00]} 48. c7 {
[%emt 0:00:00]} Rc1 {[%emt 0:01:41]} 49. Rd7 {[%emt 0:00:00]} Kf6 {[%emt 0:00:
00]} 50. Bd5 {[%emt 0:03:43]} Rc2+ {[%emt 0:00:49]} 51. Kd1 {[%emt 0:00:44]} e3
{[%emt 0:00:35]} 52. Kxc2 {[%emt 0:00:23]} e2 {[%emt 0:00:04]} 53. c8=Q {
[%emt 0:00:11]} e1=Q {[%emt 0:00:34]} 54. Rf7+ {[%emt 0:00:33]} Kg6 {[%emt 0:
00:00]} 55. Qf5+ {[%emt 0:00:08]} 1-0

[Event "44th Chess Olympiad Women 2022"]
[Site "Chennai"]
[Date "2022.08.06"]
[Round "8.24"]
[White "Martynkova, Olena"]
[Black "Heredia Serrano, Carla"]
[Result "1-0"]
[WhiteElo "2213"]
[BlackElo "2090"]
[Annotator "RC"]
[PlyCount "117"]
[EventDate "2022.??.??"]
[TimeControl "60"]

1. d4 {[%emt 0:00:04]} d5 {[%emt 0:00:37]} 2. c4 {[%emt 0:00:19]} dxc4 {
[%emt 0:00:26]} 3. Nf3 {[%emt 0:00:32]} Nf6 {[%emt 0:00:15]} 4. e3 {[%emt 0:00:
00]} Bg4 {[%emt 0:00:09]} 5. Bxc4 {[%emt 0:01:04]} e6 {[%emt 0:00:13]} 6. O-O {
[%emt 0:03:02]} a6 {[%emt 0:00:35]} 7. Nc3 {[%emt 0:02:40]} Nc6 {[%emt 0:00:13]
} 8. Be2 {[%emt 0:06:04]} Bd6 {[%emt 0:00:51]} 9. h3 {[%emt 0:06:06]} Bh5 {
[%emt 0:00:13]} 10. b3 {[%emt 0:09:00]} O-O {[%emt 0:02:51]} 11. Bb2 {[%emt 0:
00:00]} Qe7 {[%emt 0:11:59]} 12. Ne5 {[%emt 0:03:49]} Bxe2 {[%emt 0:05:16]} 13.
Nxc6 {[%emt 0:02:12]} Bxd1 {[%emt 0:07:41]} 14. Nxe7+ {[%emt 0:00:08]} Bxe7 {
[%emt 0:00:05]} 15. Rfxd1 {[%emt 0:00:12]} Rfd8 {[%emt 0:04:28]} 16. Rac1 {
[%emt 0:02:19]} Kf8 {[%emt 0:14:30]} 17. Kf1 {[%emt 0:06:17]} Rd7 {[%emt 0:00:
00]} 18. Ke2 {[%emt 0:02:56]} Rad8 {[%emt 0:00:15]} 19. g4 {[%emt 0:02:45]} Nd5
{[%emt 0:07:26]} 20. Ne4 {[%emt 0:04:25]} f5 {[%emt 0:08:58]} 21. Nc5 {[%emt 0:
00:00]} Bxc5 {[%emt 0:00:07]} 22. dxc5 {[%emt 0:00:24]} h6 {[%emt 0:09:15]} 23.
c6 {[%emt 0:04:17]} bxc6 {[%emt 0:00:40]} 24. gxf5 {[%emt 0:07:15]} exf5 {
[%emt 0:00:22]} 25. Rd4 {[%emt 0:00:39]} Kf7 {[%emt 0:15:26]} 26. Rxc6 {
[%emt 0:01:52]} Rd6 {[%emt 0:00:17]} 27. Rc5 {[%emt 0:03:53]} g6 {[%emt 0:00:
00]} 28. Ba3 {[%emt 0:00:38]} R6d7 {[%emt 0:00:37]} 29. Rc6 {[%emt 0:01:07]}
Ra8 {[%emt 0:00:32]} 30. Bb2 {[%emt 0:01:45]} a5 {[%emt 0:00:28]} 31. Rc5 {
[%emt 0:01:41]} Rad8 {[%emt 0:00:31]} 32. Rxa5 {[%emt 0:00:49]} Nf4+ {[%emt 0:
00:00]} 33. exf4 {[%emt 0:01:24]} Rxd4 {[%emt 0:00:01]} 34. Bxd4 {[%emt 0:00:
00]} Rxd4 {[%emt 0:00:03]} 35. Rc5 {[%emt 0:00:15]} Rd7 {[%emt 0:00:43]} 36.
Rc6 {[%emt 0:00:35]} Re7+ {[%emt 0:01:16]} 37. Kf3 {[%emt 0:01:10]} Rd7 {
[%emt 0:00:18]} 38. h4 {[%emt 0:01:33]} Kg7 {[%emt 0:00:38]} 39. b4 {[%emt 0:
00:00]} Rd3+ {[%emt 0:00:32]} 40. Kg2 {[%emt 0:01:06]} Rd4 {[%emt 0:00:26]} 41.
Rxc7+ {[%emt 0:32:17]} Kf6 {[%emt 0:30:03]} 42. Rc6+ {[%emt 0:00:29]} Ke7 {
[%emt 0:00:00]} 43. Rb6 {[%emt 0:00:00]} Rxf4 {[%emt 0:00:00]} 44. a4 {[%emt 0:
00:00]} Rg4+ {[%emt 0:00:00]} 45. Kh3 {[%emt 0:00:00]} g5 {[%emt 0:00:00]} 46.
h5 {[%emt 0:00:00]} Kd7 {[%emt 0:00:00]} 47. a5 {[%emt 0:00:00]} Kc7 {[%emt 0:
00:00]} 48. b5 {[%emt 0:00:00]} Rh4+ {[%emt 0:00:00]} 49. Kg2 {[%emt 0:00:00]}
Rg4+ {[%emt 0:04:29]} 50. Kf1 {[%emt 0:00:00]} Ra4 {[%emt 0:00:35]} 51. Rc6+ {
[%emt 0:00:00]} Kb8 {[%emt 0:00:30]} 52. a6 {[%emt 0:00:00]} Ra1+ {[%emt 0:00:
00]} 53. Kg2 {[%emt 0:00:00]} Ra5 {[%emt 0:00:43]} 54. Rxh6 {[%emt 0:00:00]}
Rxb5 {[%emt 0:00:09]} 55. Rh7 {[%emt 0:00:00]} Ka8 {[%emt 0:01:46]} 56. Rb7 {
[%emt 0:00:06]} Ra5 {[%emt 0:00:04]} 57. h6 Ra4 {[%emt 0:00:03]} 58. h7 {
[%emt 0:00:02]} Rh4 {[%emt 0:00:02]} 59. Rg7 {[%emt 0:00:01]} 1-0

[Event "44th Chess Olympiad Women 2022"]
[Site "Chennai"]
[Date "2022.08.06"]
[Round "8.24"]
[White "Miranda Vargas, Analia Karen"]
[Black "Simkunaite, Gabija"]
[Result "1/2-1/2"]
[WhiteElo "1723"]
[BlackElo "2010"]
[Annotator "NA RC"]
[PlyCount "129"]
[EventDate "2022.??.??"]
[TimeControl "60"]

1. Nf3 {[%emt 0:00:05]} d5 {[%emt 0:00:10]} 2. c4 {[%emt 0:00:16]} e6 {[%emt 0:
00:00]} 3. g3 {[%emt 0:00:24]} Nf6 {[%emt 0:00:54]} 4. Bg2 {[%emt 0:00:36]} Be7
{[%emt 0:00:54]} 5. O-O {[%emt 0:00:21]} O-O {[%emt 0:00:51]} 6. d4 {[%emt 0:
00:00]} c5 {[%emt 0:04:42]} 7. cxd5 {[%emt 0:00:57]} exd5 {[%emt 0:00:08]} 8.
dxc5 {[%emt 0:00:33]} Bxc5 {[%emt 0:01:21]} 9. Nc3 {[%emt 0:01:58]} h6 {
[%emt 0:09:17]} 10. Bf4 {[%emt 0:02:13]} Nc6 {[%emt 0:04:31]} 11. Rc1 {[%emt 0:
00:00]} Bb6 {[%emt 0:07:42]} 12. Ne5 {[%emt 0:15:53]} Re8 {[%emt 0:04:21]} 13.
Nxc6 {[%emt 0:18:36]} bxc6 {[%emt 0:00:07]} 14. Qa4 {[%emt 0:03:06]} Bd7 {
[%emt 0:07:31]} 15. Qc2 {[%emt 0:04:22]} Qe7 {[%emt 0:03:52]} 16. Rfe1 {
[%emt 0:12:25]} Ng4 {[%emt 0:01:34]} 17. Nd1 {[%emt 0:01:27]} g5 {[%emt 0:00:
00]} 18. Bd2 {[%emt 0:03:18]} Qf6 {[%emt 0:01:29]} 19. Bf3 {[%emt 0:01:16]} Ne5
{[%emt 0:01:15]} 20. Bg2 {[%emt 0:02:34]} Bf5 {[%emt 0:01:35]} 21. Qa4 {
[%emt 0:01:13]} Rad8 {[%emt 0:03:02]} 22. Ne3 {[%emt 0:02:07]} Bc8 {[%emt 0:00:
00]} 23. Ba5 {[%emt 0:02:50]} Bxe3 {[%emt 0:04:44]} 24. fxe3 {[%emt 0:00:03]}
Rd6 {[%emt 0:03:52]} 25. Bc3 {[%emt 0:02:04]} Qe6 {[%emt 0:04:56]} 26. Qxa7 {
[%emt 0:02:36]} Ng4 {[%emt 0:03:27]} 27. Bd4 {[%emt 0:00:10]} Nxe3 {[%emt 0:00:
00]} 28. Bxe3 {[%emt 0:03:08]} Qxe3+ {[%emt 0:00:06]} 29. Qxe3 {[%emt 0:00:02]}
Rxe3 {[%emt 0:00:08]} 30. Kf2 {[%emt 0:00:04]} Re7 {[%emt 0:00:43]} 31. Rc3 {
[%emt 0:01:45]} Ba6 {[%emt 0:02:18]} 32. h3 {[%emt 0:02:30]} f5 {[%emt 0:01:53]
} 33. Ra3 {[%emt 0:01:03]} Bb5 {[%emt 0:00:51]} 34. Ra8+ {[%emt 0:00:49]} Kg7 {
[%emt 0:00:06]} 35. b3 {[%emt 0:01:30]} Rde6 {[%emt 0:03:28]} 36. Bf3 {[%emt 0:
00:00]} Bd3 {[%emt 0:00:34]} 37. Rc8 {[%emt 0:01:08]} Ba6 {[%emt 0:03:35]} 38.
Ra8 {[%emt 0:00:48]} Bb7 {[%emt 0:00:43]} 39. Rd8 {[%emt 0:01:10]} Kf6 {
[%emt 0:05:02]} 40. g4 {[%emt 0:00:58]} f4 {[%emt 0:00:49]} 41. Rd1 {[%emt 0:
00:00]} Ke5 {[%emt 0:36:22]} 42. a4 {[%emt 0:00:00]} Re8 {[%emt 0:00:00]} 43.
Rd7 {[%emt 0:00:00]} R6e7 {[%emt 0:00:00]} 44. Rxe7+ {[%emt 0:00:00]} Rxe7 {
[%emt 0:00:00]} 45. b4 {[%emt 0:00:00]} Kd6 {[%emt 0:00:00]} 46. Rd3 {[%emt 0:
00:00]} c5 {[%emt 0:00:00]} 47. bxc5+ {[%emt 0:00:00]} Kxc5 {[%emt 0:00:00]}
48. Ke1 {[%emt 0:00:00]} d4 {[%emt 0:00:00]} 49. Kf2 {[%emt 0:00:00]} Bxf3 {
[%emt 0:00:00]} 50. Kxf3 {[%emt 0:00:00]} Re3+ {[%emt 0:00:00]} 51. Kf2 {
[%emt 0:00:00]} Re6 {[%emt 0:00:00]} 52. Kf3 {[%emt 0:00:00]} Kc4 {[%emt 0:00:
00]} 53. a5 {[%emt 0:00:00]} Kc5 {[%emt 0:00:00]} 54. Kf2 {[%emt 0:00:00]} h5 {
[%emt 0:00:00]} 55. gxh5 {[%emt 0:00:00]} Rh6 {[%emt 0:00:00]} 56. Ra3 {
[%emt 0:00:00]} Rxh5 {[%emt 0:00:00]} 57. a6 {[%emt 0:00:00]} Rh8 {[%emt 0:00:
00]} 58. a7 {[%emt 0:00:00]} Ra8 {[%emt 0:00:00]} 59. Kf3 {[%emt 0:00:00]} Kb4
{[%emt 0:00:00]} 60. Ra6 {[%emt 0:00:27]} Kc3 {[%emt 0:00:00]} 61. Ra3+ {
[%emt 0:00:46]} Kb4 {[%emt 0:00:00]} 62. Ra6 {[%emt 0:00:10]} Kc3 {[%emt 0:00:
00]} 63. Ra3+ {[%emt 0:01:30]} Kb4 {[%emt 0:00:00]} 64. Ra6 {[%emt 0:00:19]}
Kc3 {[%emt 0:00:00]} 65. Ra3+ {[%emt 0:02:21]} 1/2-1/2